[Event "20th Heraklion IT Open 2017"]
[Site "Heraklion"]
[Date "2017.04.18"]
[Round "3"]
[White "Serpetsidaki, Eva"]
[Black "Serpetsidakis, Nikolaos"]
[Result "0-1"]
[ECO "C01"]
[WhiteElo "1693"]
[BlackElo "1994"]
[Annotator "NA RC"]
[PlyCount "104"]
[EventDate "2017.??.??"]
[EventType "swiss"]
[EventCountry "GRE"]
[SourceTitle "playchess.com"]
[Source "ChessBase"]
[SourceQuality "1"]
[TimeControl "40/5400+30:1800+30"]

{[%evp 8,104,28,14,36,1,33,16,30,12,33,4,18,8,13,8,-1,7,19,20,29,16,41,34,60,20,12,22,18,13,16,32767,32767,32767,5,0,16,0,32,24,44,0,32767,32767,32767,32767,32767,32767,32767,-87,-79,-96,-90,-101,-102,-123,-99,-101,-100,-97,-95,-101,-108,-127,-116,-116,-78,-54,-59,-87,-8,-168,-177,-192,-177,-174,-163,-241,-226,32767,32767,32767,-257,32767,-233,-402,-475,32767,-760,-1270,-1400,32767,32767,-5122,-5097,32767,-5473,32767,-6089]} 1. e4 {[%emt 0:09:04]} e6 {[%emt 0:00:24]} 2. d4 {[%emt 0:00:11]} d5 {[%emt 0:00:07]} 3. exd5 {[%emt 0:00:07]} exd5 {[%emt 0:00:08]} 4. Bd3 {[%emt 0:00:19]} Nc6 {[%emt 0:00:23]} 5. c3 {[%emt 0:02:07] LiveBook: 495 Games} Bd6 {[%emt 0:01:03]} 6. Nd2 {[%emt 0:03:59] C01: French: Exchange Variation} (6. Qf3 Be6 7. Ne2 Qd7 8. h3 O-O-O 9. Be3 Nge7 10. Bf4 Bxf4 11. Nxf4 g5 12. Nxe6 fxe6 13. Nd2 e5 14. dxe5 Nxe5 15. Qg3 Nxd3+ 16. Qxd3 {0-1 (25) Horvath,A (2536)-Rapport,R (2676) Hungary 2014}) 6... Nge7 {[%emt 0:02:11]} 7. Ne2 {[%emt 0:02:53]} Bg4 {[%emt 0:00:49]} 8. h3 $146 {[%emt 0:00:53]} (8. Nf1 Bh5 9. Ne3 Bg6 10. Ng3 Qd7 11. Qc2 Bxd3 12. Qxd3 O-O-O 13. Bd2 h5 14. O-O-O g6 15. Ne2 Rde8 16. h4 Nd8 17. g3 Ne6 18. Ng2 c6 19. Nef4 Nxf4 20. Bxf4 Bxf4+ 21. Nxf4 {½-½ (21) Ilincic,Z (2447)-Kosic,D (2481) Subotica 2010}) 8... Bh5 {[%emt 0:00:17]} 9. Qb3 {[%emt 0:00:32]} b6 {[%emt 0:07:06]} 10. Qc2 {[%emt 0:04:28]} Qd7 {[%emt 0:02:13]} 11. Nb3 {[%emt 0:09:09]} Bg6 {[%emt 0:02:02]} 12. Bf4 {[%emt 0:02:06]} a5 {[%emt 0:01:45]} 13. O-O {[%emt 0:02:18]} Bxd3 {[%emt 0:12:00]} 14. Qxd3 {[%emt 0:00:11]} Bxf4 {[%emt 0:03:25]} 15. Nxf4 {[%emt 0:01:10]} Qd6 {[%emt 0:00:06]} 16. Ne2 {[%emt 0:03:43]} O-O {[%emt 0:03:21]} 17. Nd2 {[%emt 0:00:38]} Rfe8 {[%emt 0:00:29]} 18. Rfe1 {[%emt 0:02:49]} Ng6 {[%emt 0:05:59]} 19. Rad1 {[%emt 0:02:42]} Re6 {[%emt 0:01:44]} 20. Ng3 {[%emt 0:02:32]} Rae8 {[%emt 0:02:25]} 21. Rxe6 {[%emt 0:00:56]} fxe6 {[%emt 0:01:34]} 22. Nf3 {[%emt 0:00:24]} Nd8 {[%emt 0:12:00]} 23. Qb5 {[%emt 0:02:31]} Rf8 {[%emt 0:02:41]} 24. Qd3 {[%emt 0:03:46]} Qf4 {[%emt 0:04:46]} 25. Qd2 {[%emt 0:01:08]} Qxd2 {[%emt 0:04:20]} 26. Rxd2 {[%emt 0:00:24]} Nf4 {[%emt 0:01:10]} 27. Ne2 {[%emt 0:01:21]} Nxh3+ {[%emt 0:00:55]} 28. Kf1 {[%emt 0:03:06]} Nf4 {[%emt 0:00:33]} 29. Nxf4 {[%emt 0:00:06]} Rxf4 {[%emt 0:00:03]} 30. Re2 {[%emt 0:00:07]} Kf7 {[%emt 0:02:50]} 31. Ng5+ {[%emt 0:01:39]} Kf6 {[%emt 0:03:03]} 32. g3 {[%emt 0:01:05]} ({Not} 32. Nxh7+ $2 Kg6 33. Re5 (33. g3 $2 Rf7 34. Kg2 Kxh7 $19) 33... Kxh7 $19) 32... Rf5 {[%emt 0:02:49]} ({Much worse is} 32... Kxg5 $6 33. gxf4+ Kxf4 34. Re3 $14) 33. f4 {[%emt 0:00:05]} ({Don't take} 33. Nxh7+ $2 Kg6 34. b4 a4 $19) 33... h6 {[%emt 0:00:50]} 34. Nf3 {[%emt 0:06:40]} g5 {[%emt 0:04:12]} 35. fxg5+ {[%emt 0:00:07]} hxg5 {[%emt 0:00:09]} 36. Kg2 {[%emt 0:00:09]} Nf7 {[%emt 0:02:00]} 37. g4 {[%emt 0:01:03]} Rf4 {[%emt 0:00:32]} 38. Kg3 {[%emt 0:00:04]} c5 {[%emt 0:02:26]} 39. Rh2 $2 {[%emt 0:02:07]} (39. a4 $11 {and White stays safe.}) 39... Re4 {[%emt 0:05:45]} 40. Rd2 {[%emt 0:00:00]} cxd4 {[%emt 0:07:22]} 41. cxd4 {[%emt 0:03:19]} e5 {[%emt 0:07:45]} 42. Rc2 {[%emt 0:07:45]} (42. Rf2 $142 Ke7 43. dxe5) 42... exd4 {[%emt 0:06:40]} 43. Rc6+ {[%emt 0:00:08]} Re6 {[%emt 0:00:05]} 44. Nxd4 {[%emt 0:00:22]} Rxc6 {[%emt 0:00:09]} 45. Nxc6 {[%emt 0:00:10]} Ke6 {[%emt 0:02:24]} 46. b4 {[%emt 0:01:56]} (46. Kf2 {might work better.}) 46... Kd6 {[%emt 0:05:06]} 47. b5 {[%emt 0:00:40]} Kc5 {[%emt 0:00:04]} 48. a4 {[%emt 0:00:36]} d4 {[%emt 0:01:38]} 49. Kf3 {[%emt 0:00:25]} Kc4 {[%emt 0:02:09]} 50. Ke4 {[%emt 0:01:49]} d3 {[%emt 0:03:16]} 51. Ne7 {[%emt 0:02:58]} d2 {[%emt 0:00:30]} 52. Nd5 {[%emt 0:00:22]} Nd6+ $19 {[%emt 0:00:08]} 0-1

[Event "20th Heraklion IT Open 2017"]
[Site "Heraklion"]
[Date "2017.04.18"]
[Round "3"]
[White "Spirou, Gerasimos"]
[Black "Maris, Ioannis"]
[Result "0-1"]
[ECO "B50"]
[WhiteElo "1692"]
[BlackElo "1967"]
[Annotator "NA"]
[PlyCount "44"]
[EventDate "2017.??.??"]
[EventType "swiss"]
[EventCountry "GRE"]
[SourceTitle "playchess.com"]
[Source "ChessBase"]
[SourceQuality "1"]
[TimeControl "40/5400+30:1800+30"]

{[%evp 8,43,18,-1,14,13,32767,8,6,-16,0,-14,-17,-20,-13,-27,-15,-72,-54,-118,-126,-266,-235,-377,-149,-181,-164,-165,-154,-259,32767,32767,32767,32767,-606,-639,-647,-674]} 1. e4 {[%emt 0:04:09]} c5 {[%emt 0:00:17]} 2. Nf3 {[%emt 0:01:28]} d6 {[%emt 0:00:20]} 3. c3 {[%emt 0:02:59]} Nf6 {[%emt 0:01:30]} 4. Bd3 {[%emt 0:00:19]} Nc6 {[%emt 0:02:43] LiveBook: 580 Games} 5. Bc2 {[%emt 0:00:33]} Bg4 {[%emt 0:01:49]} 6. h3 {[%emt 0:00:37]} Bh5 {[%emt 0:01:47]} 7. d3 {[%emt 0:04:22]} e6 {[%emt 0:04:49]} 8. Be3 {[%emt 0:04:23] B50: Sicilian: 2...d6, Miscellaneous} (8. Nbd2 Qc7 9. Nf1 d5 10. exd5 exd5 11. Ng3 Bg6 12. O-O O-O-O 13. a3 Bd6 14. b4 c4 15. d4 Rhe8 16. Nf5 {½-½ (45) Aronian,L (2797)-Nakamura,H (2767) Saint Louis 2014}) 8... Be7 {[%emt 0:02:16]} 9. Nbd2 {[%emt 0:00:52]} O-O $146 {[%emt 0:02:01]} (9... d5 10. Ba4 Qc7 11. Bxc6+ bxc6 12. Qa4 Nd7 13. a3 O-O 14. O-O a5 15. Rab1 f6 16. exd5 cxd5 {0-1 (37) Iakymov,V (2469)-Roiz,M (2593) Israel 2016}) 10. Qe2 {[%emt 0:15:36]} h6 {[%emt 0:08:13]} 11. g4 {[%emt 0:06:12]} Bg6 {[%emt 0:00:03]} 12. g5 {[%emt 0:02:34]} (12. Bf4 $11 {remains equal.}) 12... hxg5 {[%emt 0:00:20]} 13. Nxg5 {[%emt 0:00:34]} d5 {[%emt 0:02:14]} 14. f4 {[%emt 0:01:42] [#]} (14. Rg1 $17 d4 15. Nxe6 fxe6 16. Rxg6) 14... d4 $1 {[%emt 0:01:43]} 15. Bf2 $2 {[%emt 0:00:30]} (15. cxd4 cxd4 16. Bg1) 15... Bh5 {[%emt 0:03:55]} (15... Nh5 $19 {and Black stays clearly on top.} 16. Qg4 {[#]} Nxf4 $1 {[%mdl 512]} 17. Qxf4 Bxg5) 16. Ngf3 {[%emt 0:00:23]} dxc3 {[%emt 0:01:31]} 17. bxc3 {[%emt 0:00:09]} Qa5 {[%emt 0:02:17]} 18. c4 {[%emt 0:05:49]} (18. Rc1 $17 {keeps fighting.}) 18... Qc3 {[%emt 0:03:40]} 19. Rc1 {[%emt 0:01:01]} Nb4 {[%emt 0:00:23]} 20. Kd1 {[%emt 0:03:08]} Nxa2 {[%emt 0:03:46]} 21. Rb1 {[%emt 0:00:26]} Qa3 {[%emt 0:00:25]} 22. Ke1 $19 {[%emt 0:02:13]} Nc3 {[%emt 0:00:47]} 0-1

[Event "20th Heraklion IT Open 2017"]
[Site "Heraklion"]
[Date "2017.04.18"]
[Round "3"]
[White "Galanakis, Nikos"]
[Black "Bras, Emanouel"]
[Result "0-1"]
[ECO "A22"]
[WhiteElo "1588"]
[BlackElo "1898"]
[Annotator "NA RC"]
[PlyCount "82"]
[EventDate "2017.??.??"]
[EventType "swiss"]
[EventCountry "GRE"]
[SourceTitle "playchess.com"]
[Source "ChessBase"]
[SourceQuality "1"]
[TimeControl "40/5400+30:1800+30"]

{[%evp 8,80,-6,11,22,-11,-2,0,32767,0,-2,-8,-1,3,28,0,-10,-19,-10,-43,-20,-37,32767,-13,32767,22,68,0,71,32,8,32767,32767,32767,18,0,0,0,0,0,0,0,0,0,23,20,30,14,27,7,50,47,42,44,41,43,43,7,20,0,41,39,40,14,54,0,0,-13,-10,-269,-271,-386,-397,-29998,-29999]} 1. c4 {[%emt 0:01:24]} e5 {[%emt 0:00:13]} 2. Nc3 {[%emt 0:01:24]} Nf6 {[%emt 0:00:27]} 3. g3 {[%emt 0:00:53]} d5 {[%emt 0:00:11]} 4. cxd5 {[%emt 0:00:45]} Nxd5 {[%emt 0:00:06]} 5. Bg2 {[%emt 0:00:22]} Nb6 {[%emt 0:00:09]} 6. Nf3 {[%emt 0:06:50]} Nc6 {[%emt 0:00:08]} 7. O-O {[%emt 0:03:40] LiveBook: 3148 Games} Be7 {[%emt 0:01:51]} 8. b3 {[%emt 0:07:38]} O-O {[%emt 0:02:26]} 9. Bb2 {[%emt 0:01:24]} f5 {[%emt 0:04:29]} 10. d3 {[%emt 0:06:07] A29: English Opening: Four Knights Variation with 4 g3} (10. d4 e4 11. Ne5 Nxe5 12. dxe5 Be6 13. Nb5 Bd5 14. Qc2 c6 15. Nd4 Qd7 16. e3 Qc7 17. g4 fxg4 18. Bxe4 Qxe5 19. Bxh7+ {1-0 (35) Lai,H (2334)-Spoelman,W (2583) Amstelveen 2015}) 10... a6 {[%emt 0:02:06]} 11. a3 $146 {[%emt 0:01:33]} (11. Rc1 Bf6 12. e3 Be6 13. Ba3 Be7 14. Bxe7 Qxe7 15. Qe2 Rad8 16. Rfd1 Bc8 17. Qb2 f4 18. Ne2 fxe3 19. fxe3 Bg4 20. Rxc6 bxc6 21. Nxe5 Bxe2 {½-½ (58) Cordon,I-Singh,S Dubai 1986}) 11... Be6 {[%emt 0:01:30]} 12. Qc2 {[%emt 0:02:38]} Bf6 {[%emt 0:06:18]} 13. Rfd1 {[%emt 0:03:52]} Qe7 {[%emt 0:05:25]} 14. Rab1 {[%emt 0:07:11]} g5 {[%emt 0:06:56]} 15. e3 {[%emt 0:06:32]} g4 {[%emt 0:13:27]} 16. Nd2 {[%emt 0:02:48]} Qf7 {[%emt 0:06:09]} (16... Rad8 $11) 17. Nc4 {[%emt 0:01:03]} Nxc4 {[%emt 0:06:58]} (17... Bg7 $11) 18. dxc4 {[%emt 0:01:44]} e4 {[%emt 0:01:26]} 19. Ne2 {[%emt 0:08:54]} Bxb2 {[%emt 0:06:36]} 20. Qxb2 {[%emt 0:01:03]} Qg7 {[%emt 0:00:59]} 21. Nf4 {[%emt 0:01:40]} Qxb2 {[%emt 0:04:40]} 22. Rxb2 {[%emt 0:00:21]} Kf7 {[%emt 0:00:32]} 23. Rbd2 {[%emt 0:08:47]} Rad8 {[%emt 0:02:33]} 24. h3 {[%emt 0:01:58]} Rxd2 {[%emt 0:00:50]} 25. Rxd2 {[%emt 0:00:22]} h5 {[%emt 0:00:47]} 26. Nxh5 {[%emt 0:02:27]} gxh3 {[%emt 0:01:29]} 27. Bxh3 {[%emt 0:00:38]} Ne5 {[%emt 0:01:01]} 28. Bg2 {[%emt 0:00:41]} b5 {[%emt 0:01:52]} 29. cxb5 {[%emt 0:01:24]} axb5 {[%emt 0:00:04]} 30. Rc2 {[%emt 0:02:06]} Bxb3 {[%emt 0:10:49]} 31. Rxc7+ {[%emt 0:00:34]} Ke6 {[%emt 0:00:45]} 32. Nf4+ {[%emt 0:06:39]} Kd6 {[%emt 0:00:38]} 33. Rc3 {[%emt 0:00:52]} Bd1 {[%emt 0:03:16]} 34. Rc1 {[%emt 0:01:32]} Bg4 {[%emt 0:01:42]} 35. Rb1 {[%emt 0:01:43]} Rc8 {[%emt 0:02:27]} 36. Kf1 {[%emt 0:03:20]} Rc3 {[%emt 0:00:47]} 37. Ra1 {[%emt 0:01:03]} Nc4 {[%emt 0:01:00]} 38. Ke1 $2 {[%emt 0:02:31]} (38. Ne2 $1 $11 {and White is okay.} Bxe2+ 39. Kxe2) 38... Nxa3 {[%emt 0:01:06]} ({Worse is} 38... Rxa3 39. Rxa3 Nxa3 40. Kd2 $11) 39. Ra2 {[%emt 0:02:32]} b4 {[%emt 0:04:59]} 40. Kd2 {[%emt 0:00:00]} ({But not} 40. Rd2+ $2 Kc6 41. f3 Rxe3+ 42. Kf2 Bxf3 43. Kxe3 Nc4+ 44. Kd4 Nxd2 $19) (40. f3 $19 exf3 41. Bf1) 40... Nb1+ {[%emt 0:00:32]} 41. Ke1 {[%emt 0:02:42]} Ke5 0-1

[Event "20th Heraklion IT Open 2017"]
[Site "Heraklion"]
[Date "2017.04.18"]
[Round "3"]
[White "Lianeris, Andreas"]
[Black "Pelantakis, Mihail"]
[Result "1/2-1/2"]
[ECO "B52"]
[WhiteElo "1543"]
[BlackElo "1737"]
[Annotator "NA RC"]
[PlyCount "115"]
[EventDate "2017.??.??"]
[EventType "swiss"]
[EventCountry "GRE"]
[SourceTitle "playchess.com"]
[Source "ChessBase"]
[SourceQuality "1"]
[TimeControl "40/5400+30:1800+30"]

1. e4 {[%emt 0:01:08]} c5 {[%emt 0:00:05]} 2. Nf3 {[%emt 0:00:32]} d6 {[%emt 0:00:06]} 3. Bb5+ {[%emt 0:01:27]} Bd7 {[%emt 0:00:40]} 4. Bxd7+ {[%emt 0:00:09]} Qxd7 {[%emt 0:00:08]} 5. O-O {[%emt 0:01:04]} Nf6 {[%emt 0:00:25]} 6. Qe2 {[%emt 0:00:27]} Nc6 {[%emt 0:00:23]} 7. c3 {[%emt 0:00:31]} e6 {[%emt 0:00:16]} 8. d4 {[%emt 0:00:22]} cxd4 {[%emt 0:00:05]} 9. cxd4 {[%emt 0:00:04]} d5 {[%emt 0:00:06]} 10. e5 {[%emt 0:00:10]} Ne4 {[%emt 0:00:15]} 11. Be3 {[%emt 0:00:10]} Be7 {[%emt 0:00:51]} 12. Ne1 {[%emt 0:02:10]} f6 {[%emt 0:00:46]} 13. f3 {[%emt 0:01:04]} Ng5 {[%emt 0:00:13]} 14. Nd3 {[%emt 0:00:21]} Nf7 {[%emt 0:01:52]} 15. f4 {[%emt 0:00:38]} O-O {[%emt 0:00:23]} 16. Nd2 {[%emt 0:01:29]} f5 {[%emt 0:01:13]} 17. Nf3 {[%emt 0:02:55]} b6 {[%emt 0:00:41]} 18. Bd2 {[%emt 0:00:29]} Rfc8 {[%emt 0:02:19]} 19. Rfc1 {[%emt 0:03:55]} Rc7 {[%emt 0:00:42]} 20. a3 {[%emt 0:01:27]} a5 {[%emt 0:01:37]} 21. Rc3 {[%emt 0:04:04]} a4 {[%emt 0:06:00]} 22. Rac1 {[%emt 0:11:18]} Rac8 {[%emt 0:00:46]} 23. Nde1 {[%emt 0:07:20]} Nb8 {[%emt 0:36:56]} 24. Rxc7 {[%emt 0:19:36]} Rxc7 {[%emt 0:00:21]} 25. Rxc7 {[%emt 0:00:33]} Qxc7 {[%emt 0:00:05]} 26. Qb5 {[%emt 0:00:37]} Qc6 {[%emt 0:00:18]} 27. Qxc6 {[%emt 0:00:11]} Nxc6 {[%emt 0:00:06]} 28. Nd3 {[%emt 0:00:55]} Kf8 {[%emt 0:02:13]} 29. Kf1 {[%emt 0:02:48]} Ke8 {[%emt 0:00:12]} 30. Ke1 {[%emt 0:03:05]} Kd7 {[%emt 0:00:39]} 31. Kd1 {[%emt 0:00:32]} h6 {[%emt 0:06:06]} 32. Bc3 {[%emt 0:07:04]} g5 {[%emt 0:01:25]} 33. Ke2 {[%emt 0:07:32]} Kc7 {[%emt 0:05:15]} 34. g3 {[%emt 0:06:38]} g4 {[%emt 0:04:48]} 35. Nd2 {[%emt 0:04:56]} Kb7 {[%emt 0:02:28]} 36. Kd1 {[%emt 0:01:45]} Ka6 {[%emt 0:00:14]} 37. Kc2 {[%emt 0:02:35]} Kb5 {[%emt 0:00:19]} 38. Nc1 {[%emt 0:02:38]} h5 {[%emt 0:03:38]} 39. Kd3 {[%emt 0:01:22]} h4 {[%emt 0:00:42]} 40. Ne2 {[%emt 0:00:00]} h3 {[%emt 0:01:33]} 41. Nf1 {[%emt 0:12:03]} Na5 {[%emt 0:08:36]} 42. Be1 {[%emt 0:12:58]} Ka6 {[%emt 0:02:34]} 43. Nc1 {[%emt 0:07:21]} Nc4 {[%emt 0:01:55]} 44. Kc2 {[%emt 0:02:49]} Nd8 {[%emt 0:01:46]} 45. Na2 {[%emt 0:00:37]} Nc6 {[%emt 0:00:34]} 46. Bc3 {[%emt 0:00:32]} Kb5 {[%emt 0:08:24]} 47. Nc1 {[%emt 0:00:33]} N6a5 {[%emt 0:07:33]} 48. Nd3 {[%emt 0:00:29]} Nb3 {[%emt 0:09:20]} 49. Nf2 {[%emt 0:00:29]} Nca5 {[%emt 0:03:11]} 50. Ne3 {[%emt 0:00:31]} Nc6 {[%emt 0:01:21]} 51. Kd3 {[%emt 0:00:31]} Nc1+ {[%emt 0:01:33]} 52. Kd2 Na2 {[%emt 0:01:17]} 53. Kd3 {[%emt 0:00:53]} Nxc3 {[%emt 0:00:31]} 54. Kxc3 {[%emt 0:00:06]} Ka5 {[%emt 0:00:07]} 55. Nc2 {[%emt 0:00:53]} Kb5 {[%emt 0:02:14]} 56. Ne3 {[%emt 0:00:40]} Na5 {[%emt 0:00:35]} 57. Nd3 {[%emt 0:00:25]} Nb3 {[%emt 0:01:07]} 58. Nc2 {[%emt 0:00:33]} 1/2-1/2

[Event "20th Heraklion IT Open 2017"]
[Site "Heraklion"]
[Date "2017.04.19"]
[Round "4"]
[White "Wallace, John Paul"]
[Black "Sredojevic, Ivan"]
[Result "1/2-1/2"]
[ECO "B06"]
[WhiteElo "2404"]
[BlackElo "2351"]
[Annotator "ChessBase"]
[PlyCount "109"]
[EventDate "2017.??.??"]
[EventType "swiss"]
[EventCountry "GRE"]
[SourceTitle "playchess.com"]
[Source "ChessBase"]
[SourceQuality "1"]
[TimeControl "40/5400+30:1800+30"]

1. d4 {[%emt 0:00:00]} Nf6 {[%emt 0:00:07]} 2. c4 {[%emt 0:00:14]} e6 {[%emt 0:00:08]} 3. Nf3 {[%emt 0:03:19]} Bb4+ {[%emt 0:00:12]} 4. Bd2 {[%emt 0:04:51]} Qe7 {[%emt 0:00:07]} 5. g3 {[%emt 0:00:52]} Nc6 {[%emt 0:00:47]} 6. Nc3 {[%emt 0:00:22]} O-O {[%emt 0:00:11]} 7. Bg2 {[%emt 0:00:46]} Na5 {[%emt 0:00:14]} 8. b3 {[%emt 0:02:12]} b6 {[%emt 0:00:16]} 9. Ne5 {[%emt 0:07:07]} Bb7 {[%emt 0:00:16]} 10. Bxb7 {[%emt 0:01:44]} Nxb7 {[%emt 0:00:09]} 11. O-O {[%emt 0:01:10]} c5 {[%emt 0:02:04]} 12. dxc5 {[%emt 0:09:39]} Nxc5 {[%emt 0:10:33]} 13. Nd3 {[%emt 0:00:57]} Nxd3 {[%emt 0:12:36]} 14. exd3 {[%emt 0:00:01]} d5 {[%emt 0:01:55]} 15. Nb5 {[%emt 0:33:10]} Rfd8 {[%emt 0:10:47]} 16. Bxb4 {[%emt 0:03:07]} Qxb4 {[%emt 0:00:11]} 17. Qc2 {[%emt 0:05:37]} Rac8 {[%emt 0:10:45]} 18. Rac1 {[%emt 0:02:55]} dxc4 {[%emt 0:08:16]} 19. dxc4 {[%emt 0:03:04]} a6 {[%emt 0:12:22]} 20. Nc3 {[%emt 0:09:36]} b5 {[%emt 0:00:51]} 21. Ne4 {[%emt 0:00:36]} Nxe4 {[%emt 0:08:09]} 22. Qxe4 {[%emt 0:00:04]} bxc4 {[%emt 0:00:24]} 23. Rxc4 {[%emt 0:00:04]} Rxc4 {[%emt 0:01:50]} 24. bxc4 {[%emt 0:00:28]} g6 {[%emt 0:04:30]} 25. Qc6 {[%emt 0:02:11]} Qd6 {[%emt 0:07:26]} 26. Qa4 {[%emt 0:00:09]} Qb6 {[%emt 0:01:14]} 27. Rd1 {[%emt 0:01:47]} Rxd1+ {[%emt 0:05:21]} 28. Qxd1 {[%emt 0:00:01]} Qb2 {[%emt 0:00:32]} 29. c5 {[%emt 0:02:53]} Qc3 {[%emt 0:00:35]} 30. Qa4 {[%emt 0:05:14]} Qc1+ {[%emt 0:00:37]} 31. Kg2 {[%emt 0:00:01]} Qxc5 {[%emt 0:00:12]} 32. Qxa6 {[%emt 0:00:05]} Qd5+ {[%emt 0:00:22]} 33. Kg1 {[%emt 0:00:12]} h5 {[%emt 0:01:48]} 34. h4 {[%emt 0:01:38]} g5 {[%emt 0:00:45]} 35. hxg5 {[%emt 0:00:25]} Qxg5 {[%emt 0:00:16]} 36. Qc4 {[%emt 0:00:25]} Qf5 {[%emt 0:01:00]} 37. a4 {[%emt 0:00:22]} Qb1+ {[%emt 0:00:24]} 38. Qf1 {[%emt 0:01:08]} Qa2 {[%emt 0:00:41]} 39. Qb5 {[%emt 0:00:17]} Qa1+ {[%emt 0:00:25]} 40. Kg2 {[%emt 0:00:00]} Qd4 {[%emt 0:00:28]} 41. a5 {[%emt 0:03:33]} Qe4+ {[%emt 0:06:20]} 42. Kg1 {[%emt 0:01:41]} Qe1+ {[%emt 0:01:20]} 43. Kg2 {[%emt 0:00:01]} Qe4+ {[%emt 0:00:11]} 44. Kh2 {[%emt 0:00:58]} Qf3 {[%emt 0:05:50]} 45. Kg1 {[%emt 0:08:32]} Kh7 {[%emt 0:07:37]} 46. a6 {[%emt 0:04:23]} h4 {[%emt 0:01:19]} 47. Qa4 {[%emt 0:00:53]} h3 {[%emt 0:02:36]} 48. Qh4+ {[%emt 0:00:04]} Kg6 {[%emt 0:02:22]} 49. Qxh3 {[%emt 0:00:02]} Qa3 {[%emt 0:02:30]} 50. Qg4+ {[%emt 0:01:04]} Kh6 {[%emt 0:00:41]} 51. Qf4+ {[%emt 0:00:23]} Kg7 {[%emt 0:02:33]} 52. Qe5+ {[%emt 0:00:51]} Kh7 {[%emt 0:00:42]} 53. Qe4+ {[%emt 0:00:10]} Kg7 {[%emt 0:00:32]} 54. Qb7 {[%emt 0:00:13]} Qc1+ {[%emt 0:02:10]} 55. Kg2 {[%emt 0:00:07]} 1/2-1/2

[Event "20th Heraklion IT Open 2017"]
[Site "Heraklion"]
[Date "2017.04.19"]
[Round "4"]
[White "Martorelli, Antonio"]
[Black "Lirindzakis, Timotheos"]
[Result "1/2-1/2"]
[ECO "C85"]
[WhiteElo "2220"]
[BlackElo "2177"]
[Annotator "TA"]
[PlyCount "77"]
[EventDate "2017.??.??"]
[EventType "swiss"]
[EventCountry "GRE"]
[SourceTitle "playchess.com"]
[Source "ChessBase"]
[SourceQuality "1"]
[TimeControl "40/5400+30:1800+30"]

{[%evp 8,77,4,0,0,0,0,32767,12,18,20,10,14,5,25,32767,32767,12,32767,8,22,3,32767,32767,32767,32767,32767,32767,32767,32767,32767,-13,32767,-18,11,0,32767,0,102,69,32767,138,333,32767,339,336,32767,197,385,309,483,182,348,417,392,311,348,386,445,364,715,32767,29991,29992,29992,29993,29993,29994,29994,1239,29995,29996]} 1. d4 {[%emt 0:04:06]} Nf6 {[%emt 0:00:07]} 2. Nf3 {[%emt 0:00:09]} e6 {[%emt 0:00:07]} 3. e3 {[%emt 0:00:39]} b6 {[%emt 0:00:11]} 4. Bd3 {[%emt 0:00:15]} Bb7 {[%emt 0:00:03]} 5. Nbd2 {[%emt 0:00:09]} c5 {[%emt 0:00:09]} 6. O-O {[%emt 0:00:16]} Nc6 {[%emt 0:01:06]} 7. a3 {[%emt 0:02:58]} Be7 {[%emt 0:00:43]} 8. b3 {[%emt 0:00:14]} Qc7 {[%emt 0:06:23]} 9. Bb2 {[%emt 0:01:54]} O-O {[%emt 0:07:38]} 10. c4 {[%emt 0:00:48] LiveBook: 8 Games A47: 1 d4 Nf6 2 Nf3 b6: Torre, London and Colle Systems} (10. Rc1 Rad8 11. c4 cxd4 12. exd4 Qf4 13. Re1 d5 14. c5 bxc5 15. dxc5 a5 16. Ne5 d4 17. g3 Qh6 {1-0 (44) Rahman,Z (2528)-Chernyshov,K (2597) Chennai 2011}) 10... d6 {[%emt 0:06:04]} 11. Re1 {[%emt 0:01:55]} Rfd8 {[%emt 0:01:58]} 12. Rc1 {[%emt 0:02:02]} Rac8 {[%emt 0:02:10]} 13. Qe2 {[%emt 0:01:50]} Qd7 $146 {[%emt 0:04:12]} (13... Qb8 14. h3 a6 15. Nh2 cxd4 16. exd4 d5 17. c5 bxc5 18. dxc5 {0-1 (44) Berkell,P (2242)-Ekelund,P (2112) Sweden 2005}) 14. Ne4 {[%emt 0:02:32]} Nxe4 {[%emt 0:16:09]} 15. Bxe4 {[%emt 0:00:08]} d5 {[%emt 0:01:08]} 16. Bb1 {[%emt 0:03:42]} dxc4 {[%emt 0:06:54]} 17. Qc2 {[%emt 0:12:51]} g6 {[%emt 0:05:15]} 18. bxc4 {[%emt 0:08:33]} Na5 19. Ne5 {[%emt 0:04:08]} Qe8 {[%emt 0:26:42]} 20. Ba2 {[%emt 0:23:12]} f6 {[%emt 0:01:55]} 21. Nd3 {[%emt 0:03:42]} Qf7 {[%emt 0:04:01]} 22. Qc3 {[%emt 0:04:25]} Nc6 {[%emt 0:03:57]} (22... Kg7 $11 {keeps the balance.}) 23. d5 $1 {[%emt 0:02:01]} Nb8 {[%emt 0:00:10]} 24. e4 {[%emt 0:07:38]} e5 {[%emt 0:00:14]} (24... Rf8 {was worth a try.} 25. e5 fxe5) 25. Nxe5 {[%emt 0:02:14]} fxe5 {[%emt 0:01:27]} 26. Qxe5 {[%emt 0:00:05]} Kf8 {[%emt 0:00:29]} 27. Qg3 {[%emt 0:03:15]} (27. Re3 $142 Qg8 28. Qg3) 27... Ke8 $2 {[%emt 0:02:44]} (27... Nc6) 28. e5 {[%emt 0:00:23]} Qf5 $2 {[%emt 0:00:56]} (28... Nc6 29. e6 (29. dxc6 Bxc6 30. e6 Qf5 $16) 29... Qg8 30. dxc6 Rxc6) 29. f4 {[%emt 0:02:11]} (29. e6 $142) 29... b5 {[%emt 0:01:15]} (29... Qh5 $142 30. e6 Nc6) 30. Bb1 {[%emt 0:00:40]} ({Weaker is} 30. cxb5 Bxd5 31. Bb1 Qf7 $15) ({Don't play} 30. d6 Qe6 31. Bb1 (31. dxe7 Rd2 32. Bb1 Rxg2+ 33. Qxg2 Bxg2 34. Kxg2 bxc4 $19) 31... b4 32. dxe7 Rd2) 30... Qh5 {[%emt 0:00:18]} 31. d6 {[%emt 0:02:45]} Bh4 {[%emt 0:00:16]} 32. Qh3 {[%emt 0:00:08]} Kf8 {[%emt 0:01:02]} 33. Re3 {[%emt 0:01:04]} ({Weaker is} 33. cxb5 Bxe1 34. Qxh5 gxh5 $16) 33... Re8 {[%emt 0:00:32]} (33... Nc6 $142 34. g4 Qh6) 34. e6 {[%emt 0:02:11]} Bc6 {[%emt 0:00:37]} 35. e7+ {[%emt 0:00:13]} Bxe7 {[%emt 0:00:29]} 36. dxe7+ {[%emt 0:00:05]} ({Not} 36. Rxe7 Qxh3 37. gxh3 Rxe7 38. dxe7+ Kxe7 $16) 36... Rxe7 {[%emt 0:00:22]} 37. Qxc8+ {[%emt 0:00:08]} Kf7 {[%emt 0:00:28]} 38. Rxe7+ {[%emt 0:00:21]} Kxe7 {[%emt 0:00:04]} 39. Re1+ {[%emt 0:00:21]} 1/2-1/2